[Event "Orlicka sachovnice 2023"]
[Site "Usti nad Orlici, Czech Republic"]
[Date "2023.05.06"]
[Round "3.7"]
[White "Kubicek, Ondrej"]
[Black "Cimprich, Lukas"]
[Result "0-1"]
[TimeControl "12 min + 3 s"]
[WhiteElo "1119"]
[BlackElo "1365"]

1. e4 {[%clk 00:12:03]} {[%emt 00:00:03]} c5 {[%clk 00:12:05]} 2. Nc3 {[%clk
00:12:00]} {[%emt 00:00:07]} Nc6 {[%clk 00:12:07]} {[%emt 00:00:02]} 3. Bc4
{[%clk 00:11:59]} {[%emt 00:00:04]} Nf6 {[%clk 00:12:01]} {[%emt 00:00:08]} 4.
d3 {[%clk 00:11:37]} {[%emt 00:00:26]} g6 {[%clk 00:12:02]} {[%emt 00:00:02]} 5.
f4 {[%clk 00:10:55]} {[%emt 00:00:44]} d6 {[%clk 00:11:57]} {[%emt 00:00:08]} 6.
Nf3 {[%clk 00:10:39]} {[%emt 00:00:18]} Bg4 {[%clk 00:11:37]} {[%emt 00:00:24]}
7. O-O {[%clk 00:09:30]} {[%emt 00:01:12]} Bg7 {[%clk 00:11:11]} {[%emt
00:00:29]} 8. Be3 {[%clk 00:09:00]} {[%emt 00:00:32]} O-O {[%clk 00:11:02]}
{[%emt 00:00:13]} 9. Qe1 {[%clk 00:08:25]} {[%emt 00:00:39]} Bxf3 {[%clk
00:09:57]} {[%emt 00:01:08]} 10. Rxf3 {[%clk 00:08:06]} {[%emt 00:00:21]} e5
{[%clk 00:09:49]} {[%emt 00:00:11]} 11. Nd5 {[%clk 00:07:24]} {[%emt 00:00:46]}
a6 {[%clk 00:07:07]} {[%emt 00:02:45]} 12. c3 {[%clk 00:06:33]} {[%emt
00:00:54]} b5 {[%clk 00:06:29]} {[%emt 00:00:41]} 13. Bb3 {[%clk 00:06:25]}
{[%emt 00:00:11]} Nxd5 {[%clk 00:04:27]} {[%emt 00:02:04]} 14. Bxd5 {[%clk
00:06:01]} {[%emt 00:00:27]} Rc8 {[%clk 00:03:47]} {[%emt 00:00:43]} 15. Qf2
{[%clk 00:05:31]} {[%emt 00:00:32]} Ne7 {[%clk 00:01:52]} {[%emt 00:01:58]} 16.
fxe5 {[%clk 00:05:02]} {[%emt 00:00:32]} Nxd5 {[%clk 00:01:42]} {[%emt
00:00:14]} 17. exd5 {[%clk 00:05:02]} {[%emt 00:00:03]} Bxe5 {[%clk 00:01:33]}
{[%emt 00:00:11]} 18. d4 {[%emt 00:00:37]} cxd4 {[%clk 00:00:59]} {[%emt
00:00:37]} 19. cxd4 {[%clk 00:04:30]} {[%emt 00:00:02]} Bg7 {[%clk 00:00:59]}
{[%emt 00:00:03]} 20. Rf1 {[%clk 00:04:14]} {[%emt 00:00:19]} Rc7 {[%clk
00:00:46]} {[%emt 00:00:17]} 21. Bd2 {[%clk 00:03:58]} {[%emt 00:00:18]} Rd7
{[%emt 00:00:22]} 22. g3 {[%clk 00:03:38]} {[%emt 00:00:23]} Qb6 {[%clk
00:00:28]} {[%emt 00:00:02]} 23. Bc3 {[%clk 00:03:27]} {[%emt 00:00:14]} b4
{[%clk 00:00:29]} {[%emt 00:00:01]} 24. Rf4 {[%clk 00:02:36]} {[%emt 00:00:54]}
bxc3 {[%clk 00:00:30]} {[%emt 00:00:03]} 25. bxc3 {[%clk 00:02:37]} Qb7 {[%clk
00:00:26]} {[%emt 00:00:07]} 26. Qf3 {[%clk 00:02:24]} {[%emt 00:00:16]} Qc7
{[%clk 00:00:13]} {[%emt 00:00:17]} 27. Rc1 {[%clk 00:02:20]} {[%emt 00:00:06]}
a5 {[%emt 00:00:02]} 28. c4 {[%clk 00:02:17]} {[%emt 00:00:05]} Qa7 {[%clk
00:00:16]} {[%emt 00:00:02]} 29. Qc3 {[%clk 00:02:11]} {[%emt 00:00:09]} Rc7
{[%clk 00:00:13]} {[%emt 00:00:06]} 30. c5 {[%clk 00:02:07]} {[%emt 00:00:07]}
dxc5 {[%clk 00:00:16]} 31. dxc5 {[%clk 00:02:08]} {[%emt 00:00:02]} Bxc3 {[%emt
00:00:02]} 32. Rxc3 {[%clk 00:02:09]} Rxc5 {[%clk 00:00:20]} {[%emt 00:00:01]}
33. Rxc5 {[%clk 00:02:10]} {[%emt 00:00:01]} Qxc5+ {[%clk 00:00:22]} 34. Rf2
{[%clk 00:02:12]} {[%emt 00:00:02]} f5 {[%clk 00:00:24]} {[%emt 00:00:01]} 35.
d6 {[%clk 00:02:13]} {[%emt 00:00:02]} Qxd6 {[%clk 00:00:26]} {[%emt 00:00:01]}
36. Kg2 {[%clk 00:02:11]} {[%emt 00:00:04]} Qd5+ {[%clk 00:00:29]} 37. Rf3
{[%clk 00:02:13]} {[%emt 00:00:01]} Qd2+ {[%clk 00:00:30]} 38. Rf2 {[%clk
00:02:13]} {[%emt 00:00:03]} Qxf2+ {[%emt 00:00:02]} 39. Kxf2 {[%clk 00:02:15]}
Re8 {[%clk 00:00:35]} {[%emt 00:00:01]} 40. Kg2 {[%clk 00:02:17]} {[%emt
00:00:01]} Kf7 41. Kh3 {[%clk 00:02:18]} {[%emt 00:00:02]} g5 {[%clk 00:00:39]}
{[%emt 00:00:01]} 42. a3 {[%emt 00:00:01]} Re3 {[%clk 00:00:41]} {[%emt
00:00:01]} 43. a4 {[%clk 00:02:20]} {[%emt 00:00:03]} Ra3 {[%clk 00:00:42]} 44.
Kg2 {[%clk 00:02:21]} {[%emt 00:00:02]} Rxa4 {[%clk 00:00:44]} {[%emt
00:00:01]} 45. Kh3 {[%clk 00:02:22]} {[%emt 00:00:02]} h5 {[%clk 00:00:46]}
{[%emt 00:00:02]} 46. Kg2 {[%clk 00:02:24]} {[%emt 00:00:05]} g4 {[%clk
00:00:48]} 47. h3 {[%emt 00:00:01]} Ra2+ {[%clk 00:00:51]} 48. Kf1 {[%clk
00:02:23]} {[%emt 00:00:02]} gxh3 {[%clk 00:00:53]} {[%emt 00:00:01]} 49. Kg1
{[%clk 00:02:25]} {[%emt 00:00:02]} Rg2+ {[%clk 00:00:52]} {[%emt 00:00:04]} 50.
Kh1 {[%clk 00:02:26]} {[%emt 00:00:02]} Rxg3 {[%clk 00:00:53]} {[%emt
00:00:01]} 51. Kh2 {[%clk 00:02:25]} {[%emt 00:00:04]} Ra3 {[%clk 00:00:55]} 52.
Kh1 {[%clk 00:02:26]} {[%emt 00:00:02]} Ra2 {[%clk 00:00:57]} {[%emt 00:00:01]}
53. Kg1 {[%clk 00:02:27]} {[%emt 00:00:02]} h2+ {[%clk 00:00:59]} {[%emt
00:00:01]} 54. Kh1 {[%clk 00:02:29]} {[%emt 00:00:01]} Ra3 {[%clk 00:00:59]}
{[%emt 00:00:03]} 55. Kg2 {[%clk 00:02:30]} {[%emt 00:00:02]} h1=Q+ {[%emt
00:00:04]} 56. Kxh1 {[%clk 00:02:31]} Ra2 {[%clk 00:01:02]} {[%emt 00:00:02]}
57. Kg1 {[%clk 00:02:33]} {[%emt 00:00:01]} Ke6 58. Kh1 {[%clk 00:02:34]} Ke5
{[%clk 00:01:07]} 59. Kg1 {[%clk 00:02:36]} Ke4 {[%clk 00:01:10]} {[%emt
00:00:01]} 60. Kh1 {[%clk 00:02:38]} Kf3 {[%clk 00:01:12]} {[%emt 00:00:01]} 61.
Kg1 {[%clk 00:02:40]} a4 {[%emt 00:00:02]} 62. Kh1 {[%clk 00:02:41]} Kg3 {[%clk
00:01:16]} 63. Kg1 {[%clk 00:02:43]} Ra1# {[%clk 00:01:18]} {[%emt 00:00:01]}
0-1

[Event "Orlicka sachovnice 2023"]
[Site "Usti nad Orlici, Czech Republic"]
[Date "2023.05.06"]
[Round "4.1"]
[White "Stary, Vojtech"]
[Black "Cimprich, Lukas"]
[Result "1-0"]
[TimeControl "12 min + 3 s"]
[WhiteElo "1604"]
[BlackElo "1365"]

1. c4 {[%clk 00:12:02]} {[%emt 00:00:04]} Nf6 {[%clk 00:12:03]} {[%emt
00:00:04]} 2. Nc3 {[%clk 00:11:49]} {[%emt 00:00:15]} g6 {[%clk 00:11:53]}
{[%emt 00:00:13]} 3. g3 {[%clk 00:11:50]} {[%emt 00:00:03]} Bg7 {[%clk
00:11:43]} {[%emt 00:00:13]} 4. Bg2 {[%clk 00:11:51]} c6 {[%clk 00:11:33]}
{[%emt 00:00:14]} 5. Nf3 {[%clk 00:11:29]} {[%emt 00:00:25]} O-O {[%clk
00:11:29]} {[%emt 00:00:07]} 6. O-O {[%clk 00:11:28]} {[%emt 00:00:03]} d5
{[%clk 00:11:22]} {[%emt 00:00:10]} 7. cxd5 {[%emt 00:00:27]} cxd5 {[%clk
00:11:04]} {[%emt 00:00:08]} 8. d4 {[%emt 00:00:30]} Bf5 {[%emt 00:00:41]} 9.
Bf4 {[%emt 00:04:03]} Ne4 {[%emt 00:02:36]} 10. Rc1 {[%emt 00:01:08]} Nc6
{[%emt 00:02:17]} 11. e3 {[%emt 00:01:47]} f6 {[%emt 00:02:33]} 12. h3 {[%emt
00:01:27]} g5 {[%emt 00:00:23]} 13. g4 {[%emt 00:00:48]} gxf4 {[%clk 00:01:02]}
{[%emt 00:00:21]} 14. gxf5 {[%clk 00:03:23]} {[%emt 00:00:03]} fxe3 {[%emt
00:00:16]} 15. fxe3 {[%emt 00:00:16]} Ng3 {[%emt 00:00:06]} 16. Rf2 {[%clk
00:02:54]} {[%emt 00:00:05]} Nxf5 {[%emt 00:01:09]} 17. Nxd5 {[%emt 00:00:43]}
Qxd5 {[%clk 00:00:40]} {[%emt 00:00:04]} 18. Nh4 {[%clk 00:01:23]} {[%emt
00:00:07]} Nxe3 {[%clk 00:00:10]} {[%emt 00:00:33]} 19. Bxd5+ {[%clk 00:01:25]}
{[%emt 00:00:01]} Nxd5 {[%emt 00:00:03]} 20. Qb3 {[%clk 00:01:19]} {[%emt
00:00:07]} e6 {[%emt 00:00:05]} 21. Nf3 {[%clk 00:01:09]} {[%emt 00:00:10]} Rf7
{[%emt 00:00:11]} 22. Re1 {[%clk 00:01:05]} Nf4 {[%clk 00:00:07]} {[%emt
00:00:08]} 23. Kh2 {[%clk 00:00:58]} {[%emt 00:00:10]} Re8 {[%clk 00:00:05]}
{[%emt 00:00:05]} 24. Qe3 {[%clk 00:00:19]} {[%emt 00:00:42]} Nd5 {[%emt
00:00:02]} 25. Qd2 {[%clk 00:00:17]} {[%emt 00:00:04]} a6 {[%clk 00:00:10]}
{[%emt 00:00:01]} 26. Nh4 {[%clk 00:00:13]} {[%emt 00:00:06]} f5 {[%clk
00:00:12]} 27. Nxf5 {[%clk 00:00:14]} {[%emt 00:00:02]} Rxf5 {[%clk 00:00:14]}
{[%emt 00:00:01]} 28. Rxf5 {[%clk 00:00:17]} Nxd4 {[%clk 00:00:10]} {[%emt
00:00:07]} 29. Qxd4 {[%clk 00:00:11]} {[%emt 00:00:08]} Bxd4 {[%clk 00:00:12]}
30. Rxd5 {[%clk 00:00:13]} {[%emt 00:00:01]} e5 {[%clk 00:00:09]} {[%emt
00:00:06]} 31. Rxd4 {[%clk 00:00:14]} {[%emt 00:00:01]} e4 {[%clk 00:00:10]}
{[%emt 00:00:03]} 32. Rdxe4 {[%clk 00:00:16]} 1-0

[Event "Orlicka sachovnice 2023"]
[Site "Usti nad Orlici, Czech Republic"]
[Date "2023.05.06"]
[Round "4.2"]
[White "Jun, Robert"]
[Black "Urban, Stanislav"]
[Result "1-0"]
[TimeControl "12 min + 3 s"]
[WhiteElo "1424"]
[BlackElo "1358"]

1. e4 {[%clk 00:12:04]} {[%emt 00:00:01]} e5 {[%clk 00:12:05]} {[%emt
00:00:02]} 2. Nf3 {[%clk 00:12:06]} {[%emt 00:00:01]} Nc6 {[%clk 00:12:06]}
{[%emt 00:00:02]} 3. c3 {[%clk 00:12:04]} {[%emt 00:00:05]} Bc5 {[%clk
00:11:55]} {[%emt 00:00:14]} 4. d4 {[%clk 00:12:03]} {[%emt 00:00:04]} exd4
{[%clk 00:11:56]} {[%emt 00:00:02]} 5. cxd4 {[%clk 00:12:05]} {[%emt 00:00:01]}
Bb6 {[%clk 00:11:50]} {[%emt 00:00:09]} 6. Nc3 {[%clk 00:12:07]} {[%emt
00:00:02]} d6 {[%clk 00:11:33]} {[%emt 00:00:19]} 7. Bc4 {[%clk 00:12:07]}
{[%emt 00:00:04]} Bg4 {[%clk 00:11:16]} {[%emt 00:00:19]} 8. Bxf7+ {[%clk
00:12:01]} {[%emt 00:00:09]} Kxf7 {[%clk 00:10:57]} {[%emt 00:00:21]} 9. Ng5+
{[%clk 00:12:03]} {[%emt 00:00:02]} Ke8 {[%clk 00:10:38]} {[%emt 00:00:21]} 10.
Qxg4 {[%clk 00:12:03]} {[%emt 00:00:04]} Bxd4 {[%clk 00:10:02]} {[%emt
00:00:39]} 11. Nd5 {[%clk 00:11:55]} {[%emt 00:00:11]} Nf6 {[%clk 00:09:30]}
{[%emt 00:00:34]} 12. Qe6+ {[%clk 00:11:52]} {[%emt 00:00:06]} Ne7 {[%clk
00:08:48]} {[%emt 00:00:46]} 13. Nxf6+ {[%clk 00:10:24]} {[%emt 00:01:32]} Bxf6
{[%clk 00:07:42]} {[%emt 00:01:08]} 14. Nf7 {[%emt 00:00:09]} Qd7 {[%clk
00:07:28]} {[%emt 00:00:14]} 15. Qxd7+ {[%clk 00:10:15]} {[%emt 00:00:09]} Kxd7
{[%clk 00:07:29]} 16. Nxh8 {[%clk 00:10:16]} {[%emt 00:00:03]} Rxh8 {[%clk
00:07:30]} 17. Be3 {[%clk 00:09:54]} {[%emt 00:00:26]} Bxb2 {[%clk 00:07:15]}
{[%emt 00:00:18]} 18. Rb1 {[%clk 00:09:55]} {[%emt 00:00:03]} Bc3+ {[%clk
00:07:16]} {[%emt 00:00:01]} 19. Ke2 {[%clk 00:09:57]} {[%emt 00:00:01]} b6
{[%clk 00:07:14]} {[%emt 00:00:05]} 20. Rhc1 {[%clk 00:09:57]} {[%emt
00:00:03]} Bf6 {[%clk 00:06:55]} {[%emt 00:00:18]} 21. f4 {[%clk 00:09:22]}
{[%emt 00:00:40]} c5 {[%clk 00:06:18]} {[%emt 00:00:40]} 22. Rd1 {[%clk
00:09:17]} {[%emt 00:00:08]} Kc6 {[%clk 00:06:09]} {[%emt 00:00:12]} 23. Rd3
{[%clk 00:08:49]} {[%emt 00:00:31]} g6 {[%clk 00:05:49]} {[%emt 00:00:24]} 24.
Rbd1 {[%clk 00:08:01]} {[%emt 00:00:51]} Nc8 {[%clk 00:05:28]} {[%emt
00:00:24]} 25. Rd5 {[%clk 00:06:54]} {[%emt 00:01:10]} Re8 {[%clk 00:04:32]}
{[%emt 00:00:58]} 26. Kf3 {[%clk 00:06:41]} {[%emt 00:00:17]} Re6 {[%clk
00:02:19]} {[%emt 00:02:16]} 27. g4 {[%clk 00:06:07]} {[%emt 00:00:38]} Ne7
{[%clk 00:01:41]} {[%emt 00:00:42]} 28. R5d2 {[%clk 00:05:58]} {[%emt
00:00:11]} Bg7 {[%clk 00:01:08]} {[%emt 00:00:35]} 29. f5 {[%clk 00:05:40]}
{[%emt 00:00:22]} gxf5 {[%clk 00:01:07]} {[%emt 00:00:04]} 30. exf5 {[%clk
00:05:39]} {[%emt 00:00:03]} Rf6 {[%clk 00:01:08]} {[%emt 00:00:02]} 31. Bg5
{[%clk 00:05:13]} {[%emt 00:00:29]} Rf7 {[%clk 00:00:43]} {[%emt 00:00:29]} 32.
Rxd6+ {[%clk 00:05:12]} {[%emt 00:00:05]} Kb5 {[%clk 00:00:44]} {[%emt
00:00:01]} 33. Bxe7 {[%clk 00:05:11]} {[%emt 00:00:04]} Rxe7 {[%clk 00:00:46]}
{[%emt 00:00:01]} 34. Rd7 {[%clk 00:05:13]} {[%emt 00:00:01]} Rxd7 {[%clk
00:00:34]} {[%emt 00:00:14]} 35. Rxd7 {[%clk 00:05:15]} {[%emt 00:00:01]} Be5
{[%clk 00:00:35]} {[%emt 00:00:02]} 36. Rxh7 {[%clk 00:05:10]} {[%emt
00:00:08]} a5 {[%clk 00:00:27]} {[%emt 00:00:11]} 37. g5 {[%clk 00:05:03]}
{[%emt 00:00:10]} c4 {[%clk 00:00:17]} {[%emt 00:00:13]} 38. Ke2 {[%clk
00:05:05]} {[%emt 00:00:01]} Bf4 {[%clk 00:00:11]} {[%emt 00:00:09]} 39. g6
{[%clk 00:05:04]} {[%emt 00:00:03]} Be5 {[%clk 00:00:08]} {[%emt 00:00:07]} 40.
g7 {[%clk 00:05:06]} 1-0

[Event "Orlicka sachovnice 2023"]
[Site "Usti nad Orlici, Czech Republic"]
[Date "2023.05.06"]
[Round "4.3"]
[White "Vuova, Karolina"]
[Black "Findejs, David"]
[Result "1-0"]
[TimeControl "12 min + 3 s"]
[WhiteElo "1300"]
[BlackElo "1378"]

1. e4 {[%clk 00:12:04]} {[%emt 00:00:02]} d6 {[%clk 00:12:01]} {[%emt
00:00:05]} 2. d4 {[%clk 00:12:04]} {[%emt 00:00:04]} Nf6 {[%clk 00:12:03]} 3.
Nc3 {[%clk 00:12:03]} {[%emt 00:00:04]} g6 {[%clk 00:11:51]} {[%emt 00:00:14]}
4. Nf3 {[%clk 00:12:00]} {[%emt 00:00:05]} Bg4 {[%clk 00:11:48]} {[%emt
00:00:07]} 5. h3 {[%clk 00:11:52]} {[%emt 00:00:11]} Bxf3 {[%clk 00:11:44]}
{[%emt 00:00:07]} 6. Qxf3 {[%clk 00:11:52]} {[%emt 00:00:04]} Nc6 {[%clk
00:11:37]} {[%emt 00:00:09]} 7. Be3 {[%clk 00:11:50]} {[%emt 00:00:05]} Bg7
{[%clk 00:11:33]} {[%emt 00:00:08]} 8. Bb5 {[%clk 00:11:06]} {[%emt 00:00:47]}
O-O {[%clk 00:11:30]} {[%emt 00:00:07]} 9. O-O {[%clk 00:10:52]} {[%emt
00:00:17]} a6 {[%clk 00:11:20]} {[%emt 00:00:13]} 10. Bxc6 {[%clk 00:10:28]}
{[%emt 00:00:27]} bxc6 {[%clk 00:11:20]} {[%emt 00:00:03]} 11. e5 {[%clk
00:10:22]} {[%emt 00:00:10]} dxe5 {[%clk 00:11:03]} {[%emt 00:00:20]} 12. dxe5
{[%clk 00:10:16]} {[%emt 00:00:08]} Nd5 {[%clk 00:11:04]} {[%emt 00:00:02]} 13.
Nxd5 {[%clk 00:09:56]} {[%emt 00:00:23]} cxd5 {[%clk 00:11:05]} {[%emt
00:00:03]} 14. Bd4 {[%clk 00:09:47]} {[%emt 00:00:12]} Rc8 {[%clk 00:10:40]}
{[%emt 00:00:28]} 15. b4 {[%clk 00:09:38]} {[%emt 00:00:13]} c6 {[%clk
00:10:23]} {[%emt 00:00:20]} 16. Rad1 {[%clk 00:09:24]} {[%emt 00:00:17]} Qc7
{[%clk 00:10:13]} {[%emt 00:00:13]} 17. Rfe1 {[%clk 00:09:12]} {[%emt
00:00:15]} e6 {[%clk 00:09:27]} {[%emt 00:00:49]} 18. Qe3 {[%clk 00:09:04]}
{[%emt 00:00:10]} Rb8 {[%clk 00:09:12]} {[%emt 00:00:18]} 19. a3 {[%clk
00:09:02]} {[%emt 00:00:05]} a5 {[%clk 00:08:57]} {[%emt 00:00:18]} 20. Bc5
{[%clk 00:08:56]} {[%emt 00:00:10]} Rfd8 {[%clk 00:08:21]} {[%emt 00:00:38]} 21.
Bd6 {[%clk 00:08:49]} {[%emt 00:00:10]} Rxd6 {[%clk 00:08:22]} {[%emt
00:00:01]} 22. exd6 {[%clk 00:08:51]} {[%emt 00:00:02]} Qxd6 {[%clk 00:08:22]}
{[%emt 00:00:03]} 23. c3 {[%clk 00:07:59]} {[%emt 00:00:55]} e5 {[%clk
00:07:21]} {[%emt 00:01:04]} 24. Qc5 {[%clk 00:07:45]} {[%emt 00:00:17]} Qxc5
{[%clk 00:07:13]} {[%emt 00:00:10]} 25. bxc5 {[%clk 00:07:47]} {[%emt
00:00:02]} Rb3 {[%clk 00:07:14]} 26. Rb1 {[%clk 00:07:41]} {[%emt 00:00:10]} a4
{[%clk 00:06:01]} {[%emt 00:01:16]} 27. Rxb3 {[%clk 00:07:20]} {[%emt
00:00:24]} axb3 {[%clk 00:06:03]} {[%emt 00:00:01]} 28. Rb1 {[%clk 00:07:22]}
Bf8 {[%clk 00:06:00]} {[%emt 00:00:06]} 29. Rxb3 {[%clk 00:07:21]} {[%emt
00:00:04]} Bxc5 {[%clk 00:06:01]} {[%emt 00:00:02]} 30. a4 {[%clk 00:07:23]}
{[%emt 00:00:02]} d4 {[%clk 00:05:52]} {[%emt 00:00:11]} 31. cxd4 {[%clk
00:07:20]} {[%emt 00:00:06]} exd4 {[%clk 00:05:52]} {[%emt 00:00:03]} 32. Rb8+
{[%clk 00:06:40]} {[%emt 00:00:42]} Bf8 {[%clk 00:04:50]} {[%emt 00:01:05]} 33.
Rc8 {[%clk 00:06:42]} {[%emt 00:00:02]} c5 {[%clk 00:04:52]} 34. a5 {[%clk
00:06:39]} {[%emt 00:00:06]} d3 {[%clk 00:04:52]} {[%emt 00:00:04]} 35. Kf1
{[%clk 00:06:41]} Kg7 {[%clk 00:04:24]} {[%emt 00:00:31]} 36. a6 {[%clk
00:06:36]} {[%emt 00:00:09]} c4 {[%clk 00:04:00]} {[%emt 00:00:27]} 37. Rxc4
{[%clk 00:06:33]} {[%emt 00:00:05]} d2 {[%clk 00:04:00]} {[%emt 00:00:04]} 38.
Ke2 {[%clk 00:06:31]} {[%emt 00:00:05]} 1-0

[Event "Orlicka sachovnice 2023"]
[Site "Usti nad Orlici, Czech Republic"]
[Date "2023.05.06"]
[Round "4.5"]
[White "Kafka, Ondrej"]
[Black "Smehlik, Vojtech"]
[Result "0-1"]
[TimeControl "12 min + 3 s"]
[WhiteElo "1271"]
[BlackElo "1369"]

1. d4 {[%clk 00:12:02]} {[%emt 00:00:03]} e5 {[%clk 00:12:02]} {[%emt
00:00:05]} 2. dxe5 {[%clk 00:11:22]} {[%emt 00:00:42]} Nc6 {[%clk 00:12:04]}
{[%emt 00:00:02]} 3. Nf3 {[%clk 00:10:58]} {[%emt 00:00:27]} Qe7 {[%clk
00:12:05]} {[%emt 00:00:02]} 4. Bf4 {[%clk 00:10:37]} {[%emt 00:00:23]} Qb4+
{[%clk 00:12:06]} {[%emt 00:00:03]} 5. Nc3 {[%clk 00:10:26]} {[%emt 00:00:13]}
Qxf4 {[%clk 00:12:05]} {[%emt 00:00:05]} 6. e3 {[%clk 00:10:16]} {[%emt
00:00:13]} Qh6 {[%clk 00:11:28]} {[%emt 00:00:40]} 7. Bc4 {[%clk 00:10:07]}
{[%emt 00:00:13]} Bb4 {[%clk 00:11:24]} {[%emt 00:00:07]} 8. O-O {[%clk
00:10:02]} {[%emt 00:00:07]} Nge7 {[%clk 00:11:24]} {[%emt 00:00:04]} 9. Nb5
{[%clk 00:09:32]} {[%emt 00:00:33]} Ba5 {[%clk 00:11:09]} {[%emt 00:00:19]} 10.
Nbd4 {[%clk 00:08:25]} {[%emt 00:01:08]} O-O {[%clk 00:10:16]} {[%emt
00:00:56]} 11. c3 {[%clk 00:08:11]} {[%emt 00:00:17]} Bb6 {[%clk 00:10:13]}
{[%emt 00:00:07]} 12. Qc2 {[%clk 00:08:08]} {[%emt 00:00:05]} Qg6 {[%clk
00:09:59]} {[%emt 00:00:18]} 13. Bd3 {[%clk 00:07:57]} {[%emt 00:00:14]} Nxd4
{[%clk 00:09:19]} {[%emt 00:00:42]} 14. exd4 {[%clk 00:07:58]} {[%emt
00:00:03]} Qh6 {[%clk 00:09:00]} {[%emt 00:00:22]} 15. Rfe1 {[%clk 00:07:33]}
{[%emt 00:00:29]} Ng6 {[%clk 00:08:47]} {[%emt 00:00:16]} 16. Re4 {[%clk
00:06:48]} {[%emt 00:00:47]} Nf4 {[%clk 00:07:58]} {[%emt 00:00:52]} 17. Rd1
{[%clk 00:05:26]} {[%emt 00:01:24]} d5 {[%clk 00:07:21]} {[%emt 00:00:42]} 18.
exd6 {[%clk 00:05:13]} {[%emt 00:00:16]} Bf5 {[%clk 00:07:21]} {[%emt
00:00:03]} 19. Re7 {[%clk 00:03:47]} {[%emt 00:01:29]} Bxd3 {[%clk 00:07:04]}
{[%emt 00:00:20]} 20. Rxd3 {[%clk 00:03:29]} {[%emt 00:00:20]} Nxd3 {[%clk
00:07:04]} {[%emt 00:00:03]} 21. Qxd3 {[%clk 00:03:31]} {[%emt 00:00:01]} cxd6
{[%clk 00:06:43]} {[%emt 00:00:25]} 22. Qc2 {[%clk 00:03:09]} {[%emt 00:00:25]}
Qg6 {[%clk 00:06:33]} {[%emt 00:00:13]} 23. Qd1 {[%clk 00:02:53]} {[%emt
00:00:18]} Rfe8 {[%clk 00:06:22]} {[%emt 00:00:15]} 24. Rxb7 {[%clk 00:02:50]}
{[%emt 00:00:05]} Rab8 {[%clk 00:06:21]} {[%emt 00:00:05]} 25. Rd7 {[%clk
00:02:42]} {[%emt 00:00:10]} Qe6 {[%clk 00:06:15]} {[%emt 00:00:09]} 26. Rxf7
{[%clk 00:01:45]} {[%emt 00:01:00]} Qxf7 {[%clk 00:06:11]} {[%emt 00:00:07]}
0-1